fUST/lending_fUST_20250802
["ID","MTS","AMOUNT","RATE_DAILY","PERIOD"]
[376734594,1754091072009,-151.0,0.00025,7]
[376734595,1754091072107,-4876.19,0.00025,7]
[376734596,1754091072117,-312.16666667,0.00025,7]
[376734597,1754091072127,-132060.15640712,0.00025,2]
[376734598,1754091072136,-7515.56009684,0.00025,14]
[376734599,1754091072145,-17092.35100155,0.00025,2]
[376734600,1754091072154,-215.03686253,0.00025,7]
[376734601,1754091072164,-215.03686253,0.00025,10]
[376734602,1754091072174,-526.925583,0.00025,10]
[376734603,1754091072183,-937.0,0.00025004,2]
[376734604,1754091072192,-760.0,0.00025054,2]
[376734605,1754091072201,-689.02,0.00025066,7]
[376734606,1754091072211,-153.0,0.0002507,2]
[376734607,1754091072223,-153.0,0.0002507,2]
[376734608,1754091072244,-153.0,0.0002507,2]
[376734609,1754091072256,-153.0,0.0002507,2]
[376734610,1754091072266,-153.0,0.0002507,2]
[376734611,1754091072276,-153.0,0.0002507,2]
[376734612,1754091072285,-153.0,0.0002507,2]
[376734613,1754091072295,-153.0,0.0002507,2]
[376734614,1754091072304,-153.0,0.0002507,2]
[376734615,1754091072314,-153.0,0.0002507,2]
[376734616,1754091072323,-153.0,0.0002507,2]
[376734617,1754091072333,-153.0,0.0002507,2]
[376734618,1754091072343,-153.0,0.0002507,2]
[376734619,1754091072352,-153.0,0.0002507,2]
[376734620,1754091072362,-153.0,0.0002507,2]
[376734621,1754091072371,-153.0,0.0002507,2]
[376734622,1754091072381,-153.0,0.0002507,2]
[376734623,1754091072391,-153.0,0.0002507,2]
[376734624,1754091072400,-153.0,0.0002507,2]
[376734625,1754091072413,-153.0,0.0002507,2]
[376734626,1754091072423,-153.0,0.0002507,2]
[376734627,1754091072433,-153.0,0.0002507,2]
[376734628,1754091072442,-153.0,0.0002507,2]
[376734629,1754091072453,-153.0,0.0002507,2]
[376734630,1754091072463,-153.0,0.0002507,2]
[376734631,1754091072472,-153.0,0.0002507,2]
[376734632,1754091072482,-153.0,0.0002507,2]
[376734633,1754091072492,-153.0,0.0002507,2]
[376734634,1754091072502,-153.0,0.0002507,2]
[376734635,1754091072512,-153.0,0.0002507,2]
[376734636,1754091072521,-153.0,0.0002507,2]
[376734637,1754091072530,-153.0,0.0002507,2]
[376734638,1754091072541,-153.0,0.0002507,2]
[376734639,1754091072561,-153.0,0.0002507,2]
[376734640,1754091072572,-153.0,0.0002507,2]
[376734641,1754091072581,-153.0,0.0002507,2]
[376734642,1754091072591,-153.0,0.0002507,2]
[376734643,1754091072600,-153.0,0.0002507,2]
[376734644,1754091072609,-153.0,0.0002507,2]
[376734645,1754091072618,-153.0,0.0002507,2]
[376734646,1754091072628,-153.0,0.0002507,2]
[376734647,1754091072637,-153.0,0.0002507,2]
[376734648,1754091072647,-153.0,0.0002507,2]
[376734649,1754091072656,-153.0,0.0002507,2]
[376734650,1754091072666,-153.0,0.0002507,2]
[376734651,1754091072676,-153.0,0.00025071,2]
[376734652,1754091072685,-153.0,0.00025071,2]
[376734653,1754091072694,-153.0,0.00025071,2]
[376734654,1754091072704,-153.0,0.00025071,2]
[376734655,1754091072713,-153.0,0.00025071,2]
[376734656,1754091072723,-153.0,0.00025071,2]
[376734657,1754091072732,-153.0,0.00025071,2]
[376734658,1754091072741,-153.0,0.00025071,2]
[376734659,1754091072751,-153.0,0.00025071,2]
[376734660,1754091072760,-153.0,0.00025071,2]
[376734661,1754091072769,-153.0,0.00025071,2]
[376734662,1754091072778,-217.519,0.0002508,2]
[376734663,1754091072788,-250.0,0.0002508,2]
[376734664,1754091072799,-150.0,0.0002508,2]
[376734665,1754091072819,-150.946962,0.00025133,2]
[376734666,1754091072830,-1155.9649901,0.00025135,2]
[376734667,1754091072841,-163.1661148,0.00025135,2]
[376734668,1754091072851,-178.4701426,0.00025135,2]
[376734669,1754091072861,-653.46840815,0.00025141,12]
[376734670,1754091072871,-206.0,0.0002515,2]
[376734671,1754091072881,-151.0,0.0002515,7]
[376734672,1754091072891,-151.0,0.0002515,7]
[376734673,1754091072901,-241.251872,0.00025166,7]
[376734674,1754091072911,-689.02,0.00025166,7]
[376734675,1754091072921,-173.06748731,0.00025168,2]
[376734676,1754091072930,-807.09,0.000252,7]
[376734677,1754091072940,-1577.2,0.000252,7]
[376734678,1754091072950,-500.0,0.00025206,2]
[376734679,1754091072961,-501.31243587,0.00025255,2]
[376734680,1754091072972,-530.25,0.00025266,2]
[376734681,1754091072982,-526.08,0.00025266,2]
[376734682,1754091072992,-904.57,0.00025266,2]
[376734683,1754091073002,-689.02,0.00025266,7]
[376734684,1754091073012,-1626.44,0.00025267,2]
[376734685,1754091073021,-650.75,0.00025267,2]
[376734686,1754091073031,-767.29,0.00025267,2]
[376734687,1754091073042,-1087.58,0.00025267,2]
[376734688,1754091073051,-683.87,0.00025267,2]
[376734689,1754091073062,-1381.02,0.00025267,2]
[376734690,1754091073072,-525.6,0.00025267,2]
[376734691,1754091073082,-657.93,0.00025267,2]
[376734692,1754091073092,-472.11,0.00025267,2]
[376734693,1754091073103,-654.22,0.00025267,2]
[376734694,1754091073114,-1062.48,0.00025267,2]
[376734695,1754091073124,-534.57,0.00025268,2]
[376734696,1754091073134,-6339.86,0.00025268,2]
[376734697,1754091073145,-460.36,0.00025268,2]
[376734698,1754091073155,-3261.32,0.00025268,2]
[376734699,1754091073165,-582.52,0.00025268,2]
[376734700,1754091073175,-946.35,0.00025268,2]
[376734701,1754091073184,-587.9,0.00025268,2]
[376734702,1754091073194,-534.27,0.00025268,2]
[376734703,1754091073204,-612.02,0.00025268,2]
[376734704,1754091073213,-516.09,0.00025268,2]
[376734705,1754091073223,-865.73,0.00025268,2]
[376734706,1754091073233,-545.71,0.00025268,2]
[376734707,1754091073242,-689.51,0.00025268,2]
[376734708,1754091073252,-1842.57,0.00025268,2]
[376734709,1754091073262,-556.43,0.00025268,2]
[376734710,1754091073272,-546.06,0.00025268,2]
[376734711,1754091073282,-372.75827621,0.00025268,2]
[376734712,1754091073292,-468.36,0.00025268,2]
[376734713,1754091073303,-920.78,0.00025268,2]
[376734714,1754091073313,-691.07,0.00025268,2]
[376734715,1754091073323,-1004.42,0.00025269,2]
[376734716,1754091073333,-693.44,0.00025269,2]
[376734717,1754091073342,-511.5,0.00025269,2]
[376734718,1754091073352,-1029.66,0.00025269,2]
[376734719,1754091073362,-462.19,0.00025269,2]
[376734720,1754091073372,-846.17,0.00025269,2]
[376734721,1754091073382,-621.67,0.00025269,2]
[376734722,1754091073391,-924.56,0.00025269,2]
[376734723,1754091073402,-566.98,0.00025269,2]
[376734724,1754091073415,-1675.56,0.00025269,2]
[376734725,1754091073425,-176.1,0.00025269,2]
[376734726,1754091073434,-1419.71,0.00025269,2]
[376734727,1754091073447,-151.0,0.0002527,7]
[376734728,1754091073458,-151.0,0.0002527,7]
[376734729,1754091073469,-557.79,0.0002527,2]
[376734730,1754091073479,-1508.75,0.0002527,2]
[376734731,1754091073491,-727.88,0.00025271,2]
[376734732,1754091073501,-535.37,0.00025271,2]
[376734733,1754091073512,-2985.37,0.00025271,2]
[376734734,1754091073522,-1912.99,0.00025272,2]
[376734735,1754091073532,-150.946962,0.00025276,10]
[376734736,1754091073542,-500.0,0.00025276,2]
[376734737,1754091073552,-937.0,0.00025278,2]
[376734738,1754091073562,-151.0,0.00025278,7]
[376734739,1754091073572,-150.946962,0.0002529,7]
[376734740,1754091073581,-500.0,0.00025299,2]
[376734741,1754091073592,-500.0,0.00025304,2]
[376734742,1754091073602,-689.02,0.00025366,7]
[376734743,1754091073611,-866.75857946,0.00025402,2]
[376734744,1754091073621,-653.46840815,0.00025417,13]
[376734745,1754091073632,-500.0,0.0002543,2]
[376734746,1754091073642,-689.02,0.00025466,7]
[376734747,1754091073652,-156.224776,0.00025476,15]
[376734748,1754091073662,-500.0,0.0002548,2]
[376734749,1754091073673,-206.0,0.0002549,2]
[376734750,1754091073683,-500.0,0.0002551,2]
[376734751,1754091073692,-159.7702658,0.00025534,2]
[376734752,1754091073702,-530.47147229,0.0002554,2]
[376734753,1754091073712,-526.27,0.0002554,2]
[376734754,1754091073721,-904.64,0.0002554,2]
[376734755,1754091073731,-1626.59331388,0.00025541,2]
[376734756,1754091073741,-650.97972891,0.00025541,2]
[376734757,1754091073751,-767.41686356,0.00025541,2]
[376734758,1754091073761,-1087.68771356,0.00025541,2]
[376734759,1754091073771,-683.94138746,0.00025541,2]
[376734760,1754091073781,-1381.19009512,0.00025541,2]
[376734761,1754091073791,-525.8,0.00025541,2]
[376734762,1754091073801,-658.07427764,0.00025541,2]
[376734763,1754091073811,-472.34,0.00025541,2]
[376734764,1754091073822,-654.28,0.00025541,2]
[376734765,1754091073832,-1062.52,0.00025541,2]
[376734766,1754091073842,-534.7294232,0.00025542,2]
[376734767,1754091073852,-6339.89793315,0.00025542,2]
[376734768,1754091073862,-460.42,0.00025542,2]
[376734769,1754091073871,-3261.42228988,0.00025542,2]
[376734770,1754091073882,-582.75694003,0.00025542,2]
[376734771,1754091073892,-946.3644325,0.00025542,2]
[376734772,1754091073902,-588.13,0.00025542,2]
[376734773,1754091073911,-534.36,0.00025542,2]
[376734774,1754091073923,-612.11423276,0.00025542,2]
[376734775,1754091073932,-516.11502071,0.00025542,2]
[376734776,1754091073944,-545.77647281,0.00025542,2]
[376734777,1754091073954,-865.87,0.00025542,2]
[376734778,1754091073963,-689.53292099,0.00025542,2]
[376734779,1754091073973,-1842.66804553,0.00025542,2]
[376734780,1754091073982,-556.58362281,0.00025542,2]
[376734781,1754091073993,-546.15819643,0.00025542,2]
[376734782,1754091074003,-468.41121217,0.00025542,2]
[376734783,1754091074013,-920.95856297,0.00025542,2]
[376734784,1754091074022,-691.25964196,0.00025542,2]
[376734785,1754091074032,-1004.44,0.00025543,2]
[376734786,1754091074041,-693.54759688,0.00025543,2]
[376734787,1754091074050,-511.72538329,0.00025543,2]
[376734788,1754091074061,-1029.889338,0.00025543,2]
[376734789,1754091074071,-462.2,0.00025543,2]
[376734790,1754091074080,-846.36,0.00025543,2]
[376734791,1754091074090,-621.9,0.00025543,2]
[376734792,1754091074100,-924.6647667,0.00025543,2]
[376734793,1754091074110,-567.21533932,0.00025543,2]
[376734794,1754091074121,-1675.61837751,0.00025543,2]
[376734795,1754091074134,-1419.76,0.00025543,2]
[376734796,1754091074156,-557.91,0.00025544,2]
[376734797,1754091074165,-1508.89,0.00025544,2]
[376734798,1754091074175,-728.0606088,0.00025545,2]
[376734799,1754091074184,-535.42,0.00025545,2]
[376734800,1754091074193,-2985.40266028,0.00025545,2]
[376734801,1754091074203,-1913.15938998,0.00025546,2]
[376734802,1754091074214,-151.0,0.0002555,7]
[376734803,1754091074224,-937.0,0.00025552,2]
[376734804,1754091074233,-151.0,0.00025552,7]
[376734805,1754091074242,-689.02,0.00025566,7]
[376734806,1754091074252,-21181.84,0.000256,2]
[376734807,1754091074262,-860.0,0.00025602,2]
[376734808,1754091074271,-689.02,0.00025666,7]
[376734809,1754091074281,-500.0,0.00025671,2]
[376734810,1754091074292,-653.46840815,0.00025693,13]
[376734811,1754091074301,-159.7702658,0.00025699,2]
[376734812,1754091074311,-151.0,0.000257,7]
[376734813,1754091074321,-150.946962,0.0002571,2]
[376734814,1754091074330,-500.0,0.00025738,2]
[376734815,1754091074341,-500.0,0.00025754,2]
[376734816,1754091074350,-689.02,0.00025766,7]
[376734817,1754091074360,-1000.0,0.00025783,5]
[376734818,1754091074370,-866.75857946,0.00025805,2]
[376734819,1754091074379,-937.0,0.00025826,2]
[376734820,1754091074389,-206.0,0.0002583,2]
[376734821,1754091074508,-159.7702658,0.00025863,2]
[376734822,1754091074519,-689.02,0.00025866,7]
[376734823,1754091074529,-500.0,0.00025894,2]
[376734824,1754091074538,-150.946962,0.00025895,10]
[376734825,1754091074548,-150.946962,0.00025923,7]
[376734826,1754091074557,-200.0,0.0002596,15]
[376734827,1754091074567,-689.02,0.00025966,7]
[376734828,1754091074576,-200.0,0.00025968,15]
[376734829,1754091074585,-200.0,0.00025968,15]
[376734830,1754091074596,-200.0,0.00025968,15]
[376734831,1754091074605,-200.0,0.00025968,15]
[376734832,1754091074614,-200.0,0.00025968,15]
[376734833,1754091074624,-200.0,0.00025968,15]
[376734834,1754091074634,-200.0,0.00025968,15]
[376734835,1754091074643,-200.0,0.00025968,15]
[376734836,1754091074653,-200.0,0.00025968,15]
[376734837,1754091074663,-394.0,0.00025968,15]
[376734838,1754091074672,-653.46840815,0.00025969,14]
[376734839,1754091074682,-764.20772202,0.00025979,2]
[376734840,1754091074691,-3000.0,0.00026,30]
[376734841,1754091074700,-37764.49532769,0.00026,2]
[376734842,1754091074710,-159.7702658,0.00026027,2]
[376734843,1754091074719,-153.0,0.00026028,2]
[376734844,1754091074728,-689.02,0.00026066,7]
[376734845,1754091074738,-200.0,0.00026084,120]
[376734846,1754091074747,-600.0,0.00026092,2]
[376734847,1754091074756,-937.0,0.000261,2]
[376734848,1754091074766,-266.51366233,0.00026109,3]
[376734849,1754091074776,-500.0,0.00026142,120]
[376734850,1754091074786,-500.0,0.00026142,120]
[376734851,1754091074796,-500.0,0.00026142,120]
[376734852,1754091074806,-500.0,0.00026142,120]
[376734853,1754091074815,-500.0,0.00026142,120]
[376734854,1754091074824,-500.0,0.00026142,120]
[376734855,1754091074834,-500.0,0.00026142,120]
[376734856,1754091074848,-500.0,0.00026142,120]
[376734857,1754091074857,-500.0,0.00026142,120]
[376734858,1754091074866,-500.0,0.00026142,120]
[376734859,1754091074875,-500.0,0.00026142,120]
[376734860,1754091074884,-500.0,0.00026142,120]
[376734861,1754091074895,-500.0,0.00026142,120]
[376734862,1754091074904,-500.0,0.00026142,120]
[376734863,1754091074913,-500.0,0.00026142,120]
[376734864,1754091074922,-500.0,0.00026142,120]
[376734865,1754091074931,-500.0,0.00026142,120]
[376734866,1754091074941,-500.0,0.00026142,120]
[376734867,1754091074951,-500.0,0.00026142,120]
[376734868,1754091074960,-500.0,0.00026142,120]
[376734869,1754091074970,-500.0,0.00026142,120]
[376734870,1754091074979,-500.0,0.00026142,120]
[376734871,1754091074988,-500.0,0.00026142,120]
[376734872,1754091074998,-500.0,0.00026142,120]
[376734873,1754091075007,-500.0,0.00026142,120]
[376734874,1754091075017,-500.0,0.00026142,120]
[376734875,1754091075026,-500.0,0.00026142,120]
[376734876,1754091075036,-500.0,0.00026142,120]
[376734877,1754091075045,-500.0,0.00026142,120]
[376734878,1754091075054,-500.0,0.00026142,120]
[376734879,1754091075064,-500.0,0.00026142,120]
[376734880,1754091075073,-500.0,0.00026142,120]
[376734881,1754091075082,-500.0,0.00026142,120]
[376734882,1754091075093,-500.0,0.00026142,120]
[376734883,1754091075102,-500.0,0.00026142,120]
[376734884,1754091075112,-500.0,0.00026142,120]
[376734885,1754091075121,-500.0,0.00026142,120]
[376734886,1754091075130,-500.0,0.00026142,120]
[376734887,1754091075139,-500.0,0.00026142,120]
[376734888,1754091075148,-500.0,0.00026142,120]
[376734889,1754091075157,-500.0,0.00026142,120]
[376734890,1754091075167,-500.0,0.00026142,120]
[376734891,1754091075176,-500.0,0.00026142,120]
[376734892,1754091075185,-500.0,0.00026142,120]
[376734893,1754091075194,-500.0,0.00026142,120]
[376734894,1754091075203,-500.0,0.00026142,120]
[376734895,1754091075213,-500.0,0.00026142,120]
[376734896,1754091075222,-500.0,0.00026142,120]
[376734897,1754091075231,-500.0,0.00026142,120]
[376734898,1754091075240,-500.0,0.00026142,120]
[376734899,1754091075249,-500.0,0.00026142,120]
[376734900,1754091075258,-500.0,0.00026142,120]
[376734901,1754091075268,-500.0,0.00026142,120]
[376734902,1754091075277,-500.0,0.00026142,120]
[376734903,1754091075287,-500.0,0.00026142,120]
[376734904,1754091075296,-500.0,0.00026142,120]
[376734905,1754091075305,-500.0,0.00026142,120]
[376734906,1754091075315,-500.0,0.00026142,120]
[376734907,1754091075324,-500.0,0.00026142,120]
[376734908,1754091075333,-500.0,0.00026142,120]
[376734909,1754091075343,-500.0,0.00026142,120]
[376734910,1754091075352,-500.0,0.00026142,120]
[376734911,1754091075362,-500.0,0.00026142,120]
[376734912,1754091075372,-500.0,0.00026142,120]
[376734913,1754091075381,-500.0,0.00026142,120]
[376734914,1754091075390,-500.0,0.00026142,120]
[376734915,1754091075400,-500.0,0.00026142,120]
[376734916,1754091075413,-500.0,0.00026142,120]
[376734917,1754091075422,-500.0,0.00026142,120]
[376734918,1754091075431,-500.0,0.00026142,120]
[376734919,1754091075440,-500.0,0.00026142,120]
[376734920,1754091075450,-500.0,0.00026142,120]
[376734921,1754091075459,-500.0,0.00026142,120]
[376734922,1754091075468,-500.0,0.00026142,120]
[376734923,1754091075478,-500.0,0.00026142,120]
[376734924,1754091075488,-500.0,0.00026142,120]
[376734925,1754091075498,-500.0,0.00026142,120]
[376734926,1754091075507,-500.0,0.00026142,120]
[376734927,1754091075518,-500.0,0.00026142,120]
[376734928,1754091075528,-500.0,0.00026142,120]
[376734929,1754091075538,-500.0,0.00026142,120]
[376734930,1754091075547,-500.0,0.00026142,120]
[376734931,1754091075556,-500.0,0.00026142,120]
[376734932,1754091075565,-500.0,0.00026142,120]
[376734933,1754091075574,-500.0,0.00026142,120]
[376734934,1754091075583,-500.0,0.00026142,120]
[376734935,1754091075592,-500.0,0.00026142,120]
[376734936,1754091075602,-500.0,0.00026142,120]
[376734937,1754091075611,-500.0,0.00026142,120]
[376734938,1754091075620,-500.0,0.00026142,120]
[376734939,1754091075630,-500.0,0.00026142,120]
[376734940,1754091075639,-500.0,0.00026142,120]
[376734941,1754091075648,-500.0,0.00026142,120]
[376734942,1754091075658,-500.0,0.00026142,120]
[376734943,1754091075667,-500.0,0.00026142,120]
[376734944,1754091075676,-500.0,0.00026142,120]
[376734945,1754091075685,-500.0,0.00026142,120]
[376734946,1754091075696,-500.0,0.00026142,120]
[376734947,1754091075705,-500.0,0.00026142,120]
[376734948,1754091075714,-500.0,0.00026142,120]
[376734949,1754091075724,-960.0,0.0002615,2]
[376734950,1754091075733,-151.0,0.00026152,7]
[376734951,1754091075743,-151.0,0.00026152,7]
[376734952,1754091075753,-206.0,0.0002616,2]
[376734953,1754091075762,-689.02,0.00026166,7]
[376734954,1754091075772,-866.75857946,0.00026208,2]
[376734955,1754091075781,-159.7702658,0.00026219,2]
[376734956,1754091075791,-653.46840815,0.00026245,14]
[376734957,1754091075801,-689.02,0.00026266,7]
[376734958,1754091075811,-500.0,0.00026282,2]
[376734959,1754091075821,-150.946962,0.00026286,2]
[376734960,1754091075831,-200.0,0.00026294,120]
[376734961,1754091075842,-151.0,0.000263,120]
[376734962,1754091075851,-600.0,0.00026364,2]
[376734963,1754091075860,-689.02,0.00026366,7]
[376734964,1754091075870,-937.0,0.00026374,2]
[376734965,1754091075879,-159.7702658,0.00026384,2]
[376734966,1754091075889,-158.81,0.000264,120]
[376734967,1754091075899,-4876.19,0.000264,7]
[376734968,1754091075909,-150.946962,0.00026428,15]
[376734969,1754091075920,-4000.0,0.00026437,4]
[376734970,1754091075930,-689.02,0.00026466,7]
[376734971,1754091075940,-206.0,0.000265,2]
[376734972,1754091075949,-150.946962,0.00026513,10]
[376734973,1754091075959,-200.0,0.00026517,120]
[376734974,1754091075969,-653.46840815,0.00026521,15]
[376734975,1754091075978,-159.7702658,0.00026548,2]
[376734976,1754091075988,-232.49438452,0.00026551,2]
[376734977,1754091075998,-500.0,0.00026554,2]
[376734978,1754091076007,-150.946962,0.00026556,7]
[376734979,1754091076017,-156.224776,0.00026558,20]
[376734980,1754091076026,-689.02,0.00026566,7]
[376734981,1754091076036,-156.224776,0.00026582,30]
[376734982,1754091076045,-150.0,0.00026591,2]
[376734983,1754091076055,-1653.07979045,0.00026596,2]
[376734984,1754091076064,-866.75857946,0.00026611,2]
[376734985,1754091076073,-900.0,0.00026631,2]
[376734986,1754091076083,-937.0,0.00026648,2]
[376734987,1754091076094,-150.946962,0.0002665,11]
[376734988,1754091076103,-689.02,0.00026666,7]
[376734989,1754091076113,-807.09,0.000267,7]
[376734990,1754091076122,-1577.2,0.000267,7]
[376734991,1754091076132,-159.7702658,0.00026712,2]
[376734992,1754091076141,-999.09335449,0.00026734,2]
[376734993,1754091076150,-251.644811,0.0002675,7]
[376734994,1754091076160,-251.644811,0.0002675,7]
[376734995,1754091076170,-200.0,0.00026754,120]
[376734996,1754091076179,-689.02,0.00026766,7]
[376734997,1754091076189,-653.46840815,0.00026797,15]
[376734998,1754091076199,-1753.5875654,0.000268,3]
[376734999,1754091076208,-151.0,0.000268,7]
[376735000,1754091076218,-151.0,0.000268,7]
[376735001,1754091076228,-150.946962,0.000268,11]
[376735002,1754091076237,-206.0,0.0002684,2]
[376735003,1754091076247,-150.946962,0.00026861,15]
[376735004,1754091076256,-150.946962,0.00026862,2]
[376735005,1754091076266,-151.405202,0.00026866,7]
[376735006,1754091076277,-689.02,0.00026866,7]
[376735007,1754091076286,-159.7702658,0.00026877,2]
[376735008,1754091076296,-937.0,0.00026922,2]
[376735009,1754091076306,-155.0,0.00026936,2]
[376735010,1754091076315,-150.946962,0.0002695,11]
[376735011,1754091076324,-200.0,0.00026958,120]
[376735012,1754091076333,-689.02,0.00026966,7]
[376735013,1754091076344,-269.0,0.0002698,120]
[376735014,1754091076354,-267.0,0.0002699,120]
[376735015,1754091076363,-64186.8628512,0.00026998,2]
[376735016,1754091076373,-203.84451151,0.00027,120]
[376735017,1754091076383,-655.23136464,0.00027,120]
[376735018,1754091076393,-181.12995642,0.00027,120]
[376735019,1754091076403,-262.13019623,0.00027,60]
[376735020,1754091076416,-323.84429657,0.00027,120]
[376735021,1754091076425,-189.63048081,0.00027,120]
[376735022,1754091076434,-21181.84,0.00027,2]
[376735023,1754091076444,-312.16666667,0.00027,3]
[376735024,1754091076454,-215.03686253,0.00027,120]
[376735025,1754091076464,-866.75857946,0.00027014,2]
[376735026,1754091076474,-170.28588355,0.00027014,2]
[376735027,1754091076486,-500.0,0.00027027,2]
[376735028,1754091076495,-151.3789105,0.0002705,2]
[376735029,1754091076584,-689.02,0.00027066,7]
[376735030,1754091076597,-653.46840815,0.00027072,16]
[376735031,1754091076606,-151.0,0.00027087,7]
[376735032,1754091076615,-151.0,0.00027087,7]
[376735033,1754091076625,-151.0,0.00027087,7]
[376735034,1754091076634,-151.0,0.00027087,7]
[376735035,1754091076644,-151.0,0.00027087,7]
[376735036,1754091076653,-151.0,0.00027087,7]
[376735037,1754091076662,-151.0,0.00027087,7]
[376735038,1754091076672,-151.0,0.00027087,7]
[376735039,1754091076681,-151.0,0.00027087,7]
[376735040,1754091076691,-151.0,0.00027087,7]
[376735041,1754091076700,-151.0,0.00027087,7]
[376735042,1754091076709,-151.0,0.00027087,7]
[376735043,1754091076719,-223.620916,0.00027087,7]
[376735044,1754091076729,-151.0,0.00027087,7]
[376735045,1754091076739,-151.422836,0.00027087,7]
[376735046,1754091076748,-151.0,0.00027087,7]
[376735047,1754091076758,-151.0,0.00027087,7]
[376735048,1754091076767,-151.0,0.00027087,7]
[376735049,1754091076777,-157.371863,0.00027087,7]
[376735050,1754091076788,-151.0,0.00027087,7]
[376735051,1754091076798,-151.0,0.00027087,7]
[376735052,1754091076808,-151.0,0.00027087,7]
[376735053,1754091076818,-151.0,0.00027087,7]
[376735054,1754091076828,-151.0,0.00027087,7]
[376735055,1754091076838,-151.0,0.00027087,7]
[376735056,1754091076848,-151.0,0.00027087,7]
[376735057,1754091076858,-151.0,0.00027087,7]
[376735058,1754091076867,-151.0,0.00027087,7]
[376735059,1754091076877,-151.0,0.00027087,7]
[376735060,1754091076886,-151.0,0.00027087,7]
[376735061,1754091076895,-151.0,0.00027087,7]
[376735062,1754091076905,-151.0,0.00027087,7]
[376735063,1754091076914,-151.0,0.00027087,7]
[376735064,1754091076924,-151.0,0.00027087,7]
[376735065,1754091076933,-151.0,0.00027087,7]
[376735066,1754091076944,-151.0,0.00027087,7]
[376735067,1754091076954,-151.0,0.00027087,7]
[376735068,1754091076964,-151.0,0.00027087,7]
[376735069,1754091076973,-169.318269,0.00027087,7]
[376735070,1754091076982,-151.0,0.00027087,7]
[376735071,1754091076992,-151.0,0.00027087,7]
[376735072,1754091077001,-151.0,0.00027087,7]
[376735073,1754091077011,-151.0,0.00027087,7]
[376735074,1754091077021,-152.785953,0.00027087,7]
[376735075,1754091077030,-151.0,0.00027087,7]
[376735076,1754091077039,-151.0,0.00027087,7]
[376735077,1754091077048,-151.0,0.00027087,7]
[376735078,1754091077058,-151.0,0.00027087,7]
[376735079,1754091077068,-151.0,0.00027087,7]
[376735080,1754091077077,-151.0,0.00027087,7]
[376735081,1754091077087,-151.0,0.00027087,7]
[376735082,1754091077098,-151.0,0.00027087,7]
[376735083,1754091077108,-151.0,0.00027087,7]
[376735084,1754091077118,-151.0,0.00027087,7]
[376735085,1754091077129,-151.0,0.00027094,7]
[376735086,1754091077139,-151.0,0.00027094,7]
[376735087,1754091077148,-165.304749,0.00027094,7]
[376735088,1754091077158,-151.0,0.00027094,7]
[376735089,1754091077168,-151.0,0.00027094,7]
[376735090,1754091077178,-151.0,0.00027094,7]
[376735091,1754091077187,-151.0,0.00027094,7]
[376735092,1754091077196,-179.5856,0.00027094,7]
[376735093,1754091077206,-151.0,0.00027094,7]